bitfinex/quotes_BTCUSD_20251208
["timestamp","ask_amount","ask_price","bid_price","bid_amount"]
[1765184278114,0.00011665,91857.0,91856.0,0.37087465]
[1765184279053,0.00011665,91857.0,91856.0,0.27644265]
[1765184280887,0.00011665,91857.0,91856.0,0.34385265]
[1765184282438,0.00011665,91857.0,91856.0,0.32587465]
[1765184282650,0.21784638,91857.0,91856.0,0.05871055]
[1765184282896,0.21784638,91857.0,91856.0,0.04151055]
[1765184283040,0.00011665,91857.0,91856.0,0.05871055]
[1765184283250,0.00011665,91857.0,91856.0,0.11705959]
[1765184283565,0.00011665,91857.0,91856.0,0.33479169]
[1765184283790,0.00011665,91857.0,91856.0,0.11105959]
[1765184284023,0.00011665,91857.0,91856.0,0.11005959]
[1765184284345,0.00011665,91857.0,91856.0,0.05271055]
[1765184284574,0.00011665,91857.0,91856.0,0.27044265]
[1765184284994,0.00011665,91857.0,91856.0,0.05271055]
[1765184285292,0.00011665,91857.0,91856.0,0.27544265]
[1765184285446,0.00011665,91857.0,91856.0,0.05771055]
[1765184286357,0.21784638,91857.0,91856.0,0.05771055]
[1765184287696,0.28531638,91857.0,91856.0,0.04051055]
[1765184287863,0.28531638,91857.0,91856.0,0.05771055]
[1765184288076,0.28531638,91857.0,91856.0,0.0250235]
[1765184288624,0.28531638,91857.0,91856.0,0.06392696]
[1765184288857,0.28692925,91857.0,91856.0,0.0068235]
[1765184289031,0.28692925,91857.0,91856.0,0.0018235]
[1765184289429,0.28692925,91857.0,91856.0,0.0038235]
[1765184289664,0.28692925,91857.0,91856.0,0.0018235]
[1765184290042,0.28692925,91857.0,91856.0,0.0028235]
[1765184290184,0.28692925,91857.0,91856.0,0.0018235]
[1765184290994,0.28792925,91857.0,91856.0,0.0018235]
[1765184291556,0.28892925,91857.0,91856.0,0.0018235]
[1765184294928,0.24831925,91857.0,91856.0,0.0018235]
[1765184295139,0.22145925,91857.0,91856.0,0.0018235]
[1765184295735,0.22045925,91857.0,91856.0,0.0018235]
[1765184296253,0.21784638,91857.0,91856.0,0.0210235]
[1765184296576,0.21784638,91857.0,91856.0,0.0874535]
[1765184296900,0.00011665,91857.0,91856.0,0.3051856]
[1765184297463,0.00011665,91857.0,91856.0,0.34408906]
[1765184298742,0.00011665,91857.0,91856.0,0.6503776]
[1765184299953,0.00011665,91857.0,91856.0,0.6533776]
[1765184300943,0.00011665,91857.0,91856.0,0.6513776]
[1765184301927,0.00011665,91857.0,91856.0,0.6603776]
[1765184305436,0.00011665,91857.0,91856.0,0.69306462]
[1765184309876,0.00011665,91857.0,91856.0,0.68478962]
[1765184312275,0.00011665,91857.0,91856.0,0.40436552]
[1765184312553,0.00011665,91857.0,91856.0,0.62209762]
[1765184312719,0.00011665,91857.0,91856.0,0.46260266]
[1765184312931,0.00011665,91857.0,91856.0,0.46260377]
[1765184313085,0.00011665,91857.0,91856.0,0.65785737]
[1765184313665,0.00011665,91857.0,91856.0,0.65985737]
[1765184314006,0.00011665,91857.0,91856.0,0.65085737]
[1765184314428,0.00011665,91857.0,91856.0,0.65585737]
[1765184315954,0.00011665,91857.0,91856.0,0.37988702]
[1765184316250,0.21784638,91857.0,91856.0,0.37988702]
[1765184316430,0.21784638,91857.0,91856.0,0.03968702]
[1765184316431,0.00011665,91857.0,91856.0,0.03968702]
[1765184316632,0.21784638,91857.0,91856.0,0.05688702]
[1765184317043,0.28365638,91857.0,91856.0,0.05688702]
[1765184317351,0.28365638,91857.0,91856.0,0.04988702]
[1765184317651,0.28365638,91857.0,91856.0,0.03768702]
[1765184317863,0.21784638,91857.0,91856.0,0.04988702]
[1765184318164,0.00011665,91857.0,91856.0,0.35824112]
[1765184318366,0.00011665,91857.0,91856.0,0.39707131]
[1765184318810,0.00011665,91857.0,91856.0,0.39807131]
[1765184319172,0.00011665,91857.0,91856.0,0.39507131]
[1765184319338,0.00011665,91857.0,91856.0,0.35724112]
[1765184320152,0.00011665,91857.0,91856.0,0.34896612]
[1765184320350,0.00011665,91857.0,91856.0,0.35296612]
[1765184320573,0.00011665,91857.0,91856.0,0.33077412]
[1765184322900,0.00011665,91857.0,91856.0,0.3063621]
[1765184323275,0.00011665,91857.0,91856.0,0.36460035]
[1765184324282,0.00011665,91857.0,91856.0,0.3285541]
[1765184324459,0.00011665,91857.0,91856.0,0.6515541]
[1765184324869,0.00011665,91857.0,91856.0,0.66243952]
[1765184327450,0.00011665,91857.0,91856.0,0.73996279]
[1765184332941,0.00011665,91857.0,91856.0,0.71777079]
[1765184333261,0.00011665,91857.0,91856.0,0.33888542]
[1765184333471,0.00011665,91857.0,91856.0,0.35608542]
[1765184333472,0.21784638,91857.0,91856.0,0.35608542]
[1765184333620,0.28049638,91857.0,91856.0,0.0222]
[1765184334224,0.24347638,91857.0,91856.0,0.0172]
[1765184334423,0.24347638,91857.0,91856.0,0.0182]
[1765184334628,0.00011665,91857.0,91856.0,0.0212]
[1765184334828,0.00011665,91857.0,91856.0,0.0172]
[1765184335033,0.00011665,91857.0,91856.0,0.2349321]
[1765184335235,0.00011665,91857.0,91856.0,0.2359321]
[1765184338713,0.00011665,91857.0,91856.0,0.2959621]
[1765184340794,0.00011665,91857.0,91856.0,0.3181541]
[1765184341515,0.21784638,91857.0,91856.0,0.0182]
[1765184341712,0.00011665,91857.0,91856.0,0.2187321]
[1765184341915,0.21784638,91857.0,91856.0,0.0182]
[1765184343011,0.00011665,91857.0,91856.0,0.2359321]
[1765184343645,0.00011665,91857.0,91856.0,0.2959621]
[1765184344485,0.00011665,91857.0,91856.0,0.3181541]
[1765184345163,0.00011665,91857.0,91856.0,0.2959621]
[1765184345366,0.00011665,91857.0,91856.0,0.3181541]
[1765184348427,0.00011665,91857.0,91856.0,0.2959621]
[1765184348568,0.00011665,91857.0,91856.0,5.72003325]
[1765184348775,0.00011665,91857.0,91856.0,5.6411541]
[1765184349522,0.00011665,91857.0,91856.0,5.6401541]
[1765184349823,0.00011665,91857.0,91856.0,5.74228381]
[1765184350023,0.00011665,91857.0,91856.0,5.36838381]
[1765184350180,0.00011665,91857.0,91856.0,5.36738381]
[1765184350381,0.00011665,91857.0,91856.0,5.6451541]
[1765184350597,0.00011665,91857.0,91856.0,5.6471541]
[1765184351012,0.00011665,91857.0,91856.0,5.74428381]
[1765184351401,0.00011665,91857.0,91856.0,5.77696459]
[1765184352450,0.00011665,91857.0,91856.0,5.67283488]
[1765184352740,0.00011665,91857.0,91856.0,5.68083488]
[1765184352945,0.00011665,91857.0,91856.0,5.68383488]
[1765184354127,0.00011665,91857.0,91856.0,5.78096459]
[1765184355026,0.00011665,91857.0,91856.0,5.76376459]
[1765184355249,0.00011665,91857.0,91856.0,5.78096459]
[1765184356475,0.00011665,91857.0,91856.0,5.68383488]
[1765184357066,0.00011665,91857.0,91856.0,5.78096459]
[1765184357457,0.00011665,91857.0,91856.0,5.68383488]
[1765184364031,0.00011665,91857.0,91856.0,5.70561488]
[1765184365186,0.00011665,91857.0,91856.0,5.68383488]
[1765184366884,0.02839127,91901.0,91898.0,0.01088162]
[1765184367099,0.00161287,91901.0,91900.0,0.21762785]
[1765184367307,0.21760735,91909.0,91900.0,0.21762785]
[1765184367308,0.2175999,91912.0,91901.0,0.21762548]
[1765184367462,0.01087985,91913.0,91901.0,0.21762548]
[1765184367463,0.2176065,91910.0,91906.0,0.01088068]
[1765184367674,0.01087961,91915.0,91910.0,0.01782]
[1765184367896,0.01272534,91911.0,91910.0,0.04165]
[1765184368220,0.01272534,91911.0,91909.0,0.0172]
[1765184368221,0.00184525,91911.0,91909.0,0.0172]
[1765184368579,0.21944766,91911.0,91909.0,0.0172]
[1765184369699,0.02283,91910.0,91909.0,0.0172]
[1765184369906,0.21761128,91907.0,91905.0,0.02913797]
[1765184370103,0.21761128,91907.0,91900.0,0.25647778]
[1765184370104,0.21761719,91905.0,91903.0,0.02913797]
[1765184370351,0.21762075,91903.0,91902.0,0.02913797]
[1765184370895,0.27704075,91903.0,91902.0,0.04629797]
[1765184372274,0.27704075,91903.0,91902.0,0.04729797]
[1765184372426,0.27704075,91903.0,91902.0,0.03013797]
[1765184372625,0.27704075,91903.0,91902.0,0.04729797]
[1765184372800,0.27704075,91903.0,91902.0,0.04629797]
[1765184373399,0.27704075,91903.0,91902.0,0.01716]
[1765184375110,0.27704075,91903.0,91901.0,0.02913797]
[1765184375277,0.10413289,91902.0,91901.0,0.01716]
[1765184375490,0.21762548,91901.0,91899.0,0.02913797]
[1765184375732,0.21763496,91897.0,91895.0,0.02913797]
[1765184375915,0.21763496,91897.0,91880.0,0.01088376]
[1765184375916,0.0108821,91894.0,91893.0,0.01716]
[1765184376114,0.22852416,91894.0,91893.0,0.01716]
[1765184376317,0.28794416,91894.0,91893.0,0.01716]
[1765184377402,0.25135416,91894.0,91893.0,0.04629797]
[1765184377851,0.28794416,91894.0,91893.0,0.04629797]
[1765184378435,0.28794416,91894.0,91893.0,0.01716]
[1765184378840,0.28994416,91894.0,91893.0,0.01716]
[1765184382561,0.21964206,91894.0,91893.0,0.01716]
[1765184383077,0.27569206,91894.0,91893.0,0.01716]
[1765184385740,0.21964206,91894.0,91893.0,0.01716]
[1765184385866,0.002,91894.0,91893.0,0.23480443]
[1765184386068,0.002,91894.0,91893.0,0.01716]
[1765184386514,0.27569206,91894.0,91893.0,0.05601063]
[1765184386757,0.2176468,91892.0,91891.0,0.03885063]
[1765184386951,0.2176468,91892.0,91891.0,0.05601063]
[1765184387139,0.21773155,91892.0,91891.0,0.05601063]
[1765184387310,0.25196155,91892.0,91891.0,0.05601063]
[1765184387517,0.27378155,91892.0,91891.0,0.05601063]
[1765184387724,0.27378155,91892.0,91891.0,0.01716]
[1765184387928,0.27578155,91892.0,91891.0,0.01716]
[1765184388353,0.21765153,91890.0,91889.0,0.03885063]
[1765184388548,0.21765627,91888.0,91887.0,0.03885063]
[1765184388782,0.21765627,91888.0,91882.0,0.05827595]
[1765184388783,0.21766338,91885.0,91884.0,0.03885063]
[1765184388961,0.21766338,91885.0,91884.0,0.0388937]
[1765184389164,0.27371338,91885.0,91884.0,0.0388937]
[1765184391876,0.27571338,91885.0,91884.0,0.0388937]
[1765184392084,0.24148338,91885.0,91884.0,0.0388937]
[1765184392303,0.02382,91885.0,91884.0,0.0388937]
[1765184392534,0.002,91885.0,91883.0,0.21766812]
[1765184392746,0.002,91885.0,91884.0,0.21766575]
[1765184393381,0.002,91885.0,91884.0,0.29232575]
[1765184393567,0.002,91885.0,91884.0,0.31451775]
[1765184394524,0.01088257,91890.0,91888.0,0.21765593]
[1765184394778,0.22853421,91890.0,91888.0,0.21765593]
[1765184395333,0.2176542,91889.0,91887.0,0.01088293]
[1765184395540,0.21765627,91888.0,91886.0,0.03889751]
[1765184395742,0.23947864,91887.0,91886.0,0.03889751]
[1765184395900,0.21766338,91885.0,91882.0,0.01716]
[1765184396102,0.21766812,91883.0,91882.0,0.01716]
[1765184396533,0.21767522,91880.0,91879.0,0.0909567]
[1765184396708,0.21767522,91880.0,91879.0,0.1081167]
[1765184397350,0.21767522,91880.0,91879.0,0.0909567]
[1765184397553,0.21767522,91880.0,91879.0,0.07543595]
[1765184397554,0.27372522,91880.0,91879.0,0.07543595]
[1765184397957,0.23949522,91880.0,91879.0,0.07643595]
[1765184398495,0.23949522,91880.0,91879.0,0.05927595]
[1765184398700,0.21767759,91879.0,91877.0,0.05827595]
[1765184398908,0.21769418,91872.0,91871.0,0.03268427]
[1765184399317,0.21770366,91868.0,91867.0,0.05827595]
[1765184399520,0.21770366,91868.0,91867.0,0.07543595]
[1765184399972,0.21770208,91869.0,91867.0,0.07543595]
[1765184400212,0.01571,91871.0,91869.0,0.21769913]
[1765184400424,0.01571,91871.0,91867.0,0.05827595]
[1765184400425,0.26926366,91868.0,91867.0,0.05827595]
[1765184400542,0.21771788,91862.0,91860.0,0.07543595]
[1765184400752,0.21771788,91862.0,91861.0,0.05608186]
[1765184400753,0.22860377,91862.0,91861.0,0.05608186]
[1765184400972,0.21772262,91860.0,91859.0,0.03892186]
[1765184401197,0.21772262,91860.0,91853.0,0.03892186]
[1765184401198,0.21772973,91857.0,91853.0,0.03892186]
[1765184401398,0.22862368,91854.0,91853.0,0.02920865]
[1765184401619,0.22862368,91854.0,91843.0,0.08877511]
[1765184401620,0.01088779,91846.0,91843.0,0.08877511]
[1765184401822,0.21775843,91845.0,91843.0,0.08877511]
[1765184402041,0.21775843,91845.0,91843.0,0.05608186]
[1765184402241,0.22864492,91846.0,91843.0,0.01716]
[1765184402453,0.22864492,91846.0,91845.0,0.02915603]
[1765184402923,0.01088779,91846.0,91843.0,0.24581028]
[1765184403122,0.01088779,91846.0,91845.0,0.02915649]
[1765184403326,0.21775156,91848.0,91845.0,0.22864518]
[1765184403689,8.469e-05,91854.0,91852.0,0.21774033]
[1765184404341,8.469e-05,91854.0,91852.0,0.21774108]
[1765184404539,0.01097153,91854.0,91851.0,0.01088719]
[1765184404762,0.01097153,91854.0,91851.0,0.2286308]
[1765184404960,8.469e-05,91854.0,91851.0,0.01088719]
[1765184405476,8.469e-05,91854.0,91852.0,0.21774099]
[1765184406029,0.00108469,91854.0,91852.0,0.21774099]
[1765184406428,8.469e-05,91854.0,91852.0,0.21774099]
[1765184406633,0.00108469,91854.0,91852.0,0.21774099]
[1765184407803,0.00108469,91854.0,91853.0,0.21773921]
[1765184407983,0.00108469,91854.0,91852.0,0.21774149]
[1765184408166,0.00108469,91854.0,91853.0,0.21773921]
[1765184408364,0.00108469,91854.0,91852.0,0.03151]
[1765184408572,0.01197153,91854.0,91848.0,0.00293329]
[1765184408776,0.00108469,91854.0,91851.0,0.2177436]
[1765184408972,8.469e-05,91854.0,91850.0,0.01088731]
[1765184409173,8.469e-05,91854.0,91848.0,0.00023262]
[1765184409174,0.04823719,91851.0,91848.0,0.00023262]
[1765184409393,0.23938869,91849.0,91848.0,0.00023262]
[1765184409730,0.24100156,91849.0,91848.0,0.00023262]
[1765184409945,0.27092156,91849.0,91848.0,0.00023262]
[1765184410079,0.29311755,91849.0,91848.0,0.00023262]
[1765184410622,0.27392156,91849.0,91848.0,0.00023262]
[1765184410861,0.3066389,91849.0,91848.0,0.00023262]
[1765184411062,0.39135788,91849.0,91848.0,0.00023262]
[1765184414219,0.22074869,91849.0,91848.0,0.00023262]
[1765184414390,0.003,91849.0,91848.0,0.02098262]
[1765184415384,0.21774167,91852.0,91849.0,0.01088743]
[1765184415585,0.2287084,91854.0,91849.0,0.01088743]
[1765184415821,0.2177418,91852.0,91849.0,0.22863475]
[1765184415996,0.2177418,91852.0,91850.0,0.2177463]
[1765184416225,8.469e-05,91854.0,91853.0,0.21773921]
[1765184416406,8.469e-05,91854.0,91853.0,0.30853121]
[1765184417078,8.469e-05,91854.0,91849.0,0.001]
[1765184417079,0.01088707,91852.0,91849.0,0.001]
[1765184417282,0.23826632,91850.0,91849.0,0.001]
[1765184417608,0.26883632,91850.0,91849.0,0.001]
[1765184417901,0.21774632,91850.0,91849.0,0.001]
[1765184418183,0.21774632,91850.0,91848.0,0.00023262]
[1765184418184,0.21774869,91849.0,91848.0,0.00023262]
[1765184418420,0.01088696,91853.0,91848.0,0.00023262]
[1765184418421,0.01197153,91854.0,91850.0,0.21774631]
[1765184418657,0.01088707,91852.0,91848.0,0.22886888]
[1765184418877,0.23826869,91849.0,91848.0,0.00023262]
[1765184419299,0.22863172,91851.0,91848.0,0.00023262]
[1765184419454,0.01088719,91851.0,91849.0,0.21774788]
[1765184419840,0.23024204,91852.0,91849.0,0.22863531]
[1765184420277,0.01249994,91852.0,91850.0,0.21774628]
[1765184420524,0.01249994,91852.0,91848.0,0.22887101]
[1765184421099,0.01249994,91852.0,91849.0,0.21774841]
[1765184421330,0.01088707,91852.0,91850.0,0.21774616]
[1765184421537,8.469e-05,91854.0,91853.0,0.21773921]
[1765184421934,8.469e-05,91854.0,91853.0,0.26913921]
[1765184422302,8.469e-05,91854.0,91853.0,0.29133121]
[1765184422501,8.469e-05,91854.0,91853.0,0.61433121]
[1765184423011,0.00108469,91854.0,91853.0,0.61433121]
[1765184424327,0.00108469,91854.0,91853.0,0.65325307]
[1765184425306,0.00108469,91854.0,91853.0,0.61433121]
[1765184426317,0.00108469,91854.0,91853.0,0.67260716]
[1765184426750,0.00108469,91854.0,91853.0,0.67460716]
[1765184426952,0.00108469,91854.0,91853.0,5.61633121]
[1765184427353,8.469e-05,91854.0,91853.0,5.61633121]
[1765184427571,8.469e-05,91854.0,91853.0,5.64901769]
[1765184427777,8.469e-05,91854.0,91853.0,5.65601769]
[1765184429995,8.469e-05,91854.0,91853.0,0.65601769]
[1765184430170,8.469e-05,91854.0,91853.0,5.65601769]
[1765184431249,8.469e-05,91854.0,91853.0,5.73371896]
[1765184431606,8.469e-05,91854.0,91853.0,0.91301769]
[1765184432400,8.469e-05,91854.0,91853.0,5.65601769]
[1765184432617,8.469e-05,91854.0,91853.0,5.73371896]
[1765184433029,8.469e-05,91854.0,91853.0,5.65601769]
[1765184433172,8.469e-05,91854.0,91853.0,5.73379406]
[1765184433587,8.469e-05,91854.0,91853.0,5.65601769]
[1765184439298,0.01571,91907.0,91902.0,0.21762312]
[1765184439503,0.00352067,91903.0,91902.0,0.21762312]
[1765184439735,0.00352067,91903.0,91902.0,0.26902312]
[1765184439883,0.00352067,91903.0,91902.0,0.23837312]
[1765184440723,0.00352067,91903.0,91902.0,0.21762312]
[1765184441760,0.00452067,91903.0,91902.0,0.21762312]
[1765184448399,0.00452067,91903.0,91902.0,0.61169512]
[1765184448593,0.0029078,91903.0,91902.0,0.61169512]
[1765184449307,0.0029078,91903.0,91902.0,0.64078221]
[1765184451211,0.0029078,91903.0,91902.0,0.61169512]
[1765184452860,0.0029078,91903.0,91902.0,0.58275512]
[1765184453671,0.0029078,91903.0,91902.0,0.56281512]
[1765184453885,0.0029078,91903.0,91902.0,0.54062312]
[1765184455063,0.05436067,91903.0,91901.0,0.02910853]
[1765184455276,0.03453067,91903.0,91902.0,0.0172]
[1765184455483,0.00452067,91903.0,91902.0,0.0172]
[1765184456252,0.00452067,91903.0,91902.0,0.21762312]
[1765184456384,0.00452067,91903.0,91902.0,0.23482312]
[1765184457424,0.05436067,91903.0,91902.0,0.23482312]
[1765184457811,0.02435067,91903.0,91902.0,0.0172]
[1765184458018,0.05436067,91903.0,91902.0,0.0172]
[1765184458199,0.02435067,91903.0,91902.0,0.23482312]
[1765184458383,0.00452067,91903.0,91902.0,0.28370312]
[1765184458585,0.00452067,91903.0,91902.0,0.23482312]
[1765184460330,0.0029078,91903.0,91902.0,0.28370312]
[1765184460528,0.0029078,91903.0,91902.0,0.30589512]
[1765184460730,0.0029078,91903.0,91902.0,0.62889512]
[1765184460935,0.0029078,91903.0,91902.0,5.60670312]
[1765184461130,0.0029078,91903.0,91902.0,5.62889512]
[1765184464291,0.0019078,91903.0,91902.0,5.62889512]
[1765184464848,0.0019078,91903.0,91902.0,5.62989512]
[1765184465511,0.0019078,91903.0,91902.0,5.62889512]
[1765184465680,0.01352,91938.0,91937.0,0.21754027]
[1765184465896,0.01360472,91938.0,91937.0,0.21754027]
[1765184466093,8.472e-05,91938.0,91937.0,0.24667483]
[1765184466296,8.472e-05,91938.0,91937.0,0.22090027]
[1765184467447,8.472e-05,91938.0,91937.0,0.21754027]
[1765184469597,8.472e-05,91938.0,91937.0,0.22090027]
[1765184470015,8.472e-05,91938.0,91937.0,0.23806027]
[1765184471303,0.00110106,91938.0,91937.0,0.23806027]
[1765184471909,0.00110106,91938.0,91937.0,0.23470027]
[1765184475567,0.00110106,91938.0,91937.0,0.21754027]
[1765184475740,0.00110106,91938.0,91937.0,0.23470027]
[1765184477040,0.00110106,91938.0,91937.0,0.28454027]
[1765184477482,0.00110106,91938.0,91937.0,0.30673227]
[1765184479672,0.00110106,91938.0,91937.0,0.62973227]
[1765184481462,0.00110106,91938.0,91937.0,5.60754027]
[1765184481711,0.00110106,91938.0,91937.0,5.62973227]
[1765184484205,0.00110106,91938.0,91937.0,5.63173227]
[1765184484571,0.00110106,91938.0,91937.0,5.63373227]
[1765184485402,0.00110106,91938.0,91937.0,5.63173227]
[1765184485803,0.00110106,91938.0,91937.0,5.63273227]
[1765184486104,0.00110106,91938.0,91937.0,5.63073227]
[1765184486484,0.00110106,91938.0,91937.0,5.63273227]
[1765184486804,0.00110106,91938.0,91937.0,1.29627227]
[1765184487005,0.00110106,91938.0,91937.0,1.31243227]
[1765184487209,0.00110106,91938.0,91937.0,1.31443227]
[1765184487462,0.00110106,91938.0,91937.0,1.31943227]
[1765184487670,0.00110106,91938.0,91937.0,5.63473227]
[1765184488022,0.00110106,91938.0,91937.0,5.63673227]
[1765184488244,0.00110106,91938.0,91937.0,5.61957227]
[1765184488455,0.00110106,91938.0,91937.0,5.41663227]
[1765184488642,0.00110106,91938.0,91937.0,5.63173227]
[1765184488850,0.00110106,91938.0,91937.0,4.87903227]
[1765184489052,0.00110106,91938.0,91937.0,4.88103227]
[1765184489658,0.00110106,91938.0,91937.0,5.63373227]
[1765184489861,0.00110106,91938.0,91937.0,5.61657227]
[1765184490168,0.00110106,91938.0,91937.0,5.63373227]
[1765184490901,0.00110106,91938.0,91937.0,2.73323227]
[1765184491209,0.00110106,91938.0,91937.0,2.76002227]
[1765184491649,0.00110106,91938.0,91937.0,5.66052227]
[1765184491873,0.00110106,91938.0,91937.0,5.66839271]
[1765184492488,0.00110106,91938.0,91937.0,5.66052227]
[1765184497085,0.0041,91950.0,91949.0,5.56270388]
[1765184497283,0.00702573,91967.0,91966.0,5.56266367]
[1765184497609,0.00702573,91967.0,91966.0,5.60615367]
[1765184497764,0.00702573,91967.0,91966.0,0.6406394]
[1765184497943,0.00702573,91967.0,91966.0,5.6406394]
[1765184498345,1e-08,91967.0,91966.0,5.70320239]
[1765184498550,1e-08,91967.0,91966.0,5.6406794]
[1765184499440,1e-08,91967.0,91966.0,5.73746592]
[1765184499714,1e-08,91967.0,91966.0,5.6486794]
[1765184500062,1e-08,91967.0,91966.0,5.74546592]
[1765184500271,1e-08,91967.0,91966.0,5.6486794]
[1765184500699,1e-08,91967.0,91966.0,5.6092874]
[1765184500894,1e-08,91967.0,91966.0,4.2044794]
[1765184501096,1e-08,91967.0,91966.0,4.1872794]
[1765184501272,1e-08,91967.0,91966.0,4.2044794]
[1765184501917,1e-08,91967.0,91966.0,5.6406794]
[1765184502280,1e-08,91967.0,91966.0,5.67839674]
[1765184502732,1e-08,91967.0,91966.0,5.67539674]
[1765184503084,0.00084169,91967.0,91966.0,5.67739674]
[1765184505171,0.00084169,91967.0,91966.0,5.67539674]
[1765184505291,0.00084169,91967.0,91966.0,5.67339674]
[1765184505498,0.00084169,91967.0,91966.0,5.68139674]
[1765184505929,0.00084169,91967.0,91966.0,5.66419674]
[1765184506200,0.00084169,91967.0,91966.0,5.68139674]
[1765184508425,0.00084169,91967.0,91966.0,5.66419674]
[1765184508761,0.00084169,91967.0,91966.0,5.68139674]
[1765184509314,0.00084169,91967.0,91966.0,5.67339674]
[1765184509510,0.00084169,91967.0,91966.0,5.68139674]
[1765184511074,0.00084169,91967.0,91966.0,5.66419674]
[1765184511276,0.00084169,91967.0,91966.0,5.68139674]
[1765184511480,0.00084169,91967.0,91966.0,5.67339674]
[1765184511778,0.02007456,91967.0,91966.0,0.2476974]
[1765184511951,0.00245456,91967.0,91966.0,0.2623374]
[1765184512126,0.00245456,91967.0,91966.0,0.2593374]
[1765184512325,0.00245456,91967.0,91966.0,0.3266008]
[1765184512527,0.00245456,91967.0,91966.0,0.3487928]
[1765184512779,0.00245456,91967.0,91966.0,0.2824308]
[1765184512982,0.00245456,91967.0,91966.0,0.2436974]
[1765184513380,0.00245456,91967.0,91966.0,0.3000708]
[1765184513589,0.00245456,91967.0,91966.0,0.3222628]
[1765184513737,0.00245456,91967.0,91966.0,0.3046228]
[1765184513940,0.00245456,91967.0,91966.0,0.3202628]
[1765184514141,0.00245456,91967.0,91966.0,0.3467928]
[1765184514766,0.00245456,91967.0,91966.0,0.2980708]
[1765184514969,0.04669456,91967.0,91966.0,0.2632308]
[1765184515169,0.04669456,91967.0,91966.0,0.2804308]
[1765184515370,0.04669456,91967.0,91966.0,0.26325787]
[1765184515570,0.04669456,91967.0,91966.0,0.02422573]
[1765184516569,0.04669456,91967.0,91966.0,0.2416974]
[1765184516768,0.00245456,91967.0,91966.0,0.2416974]
[1765184517961,0.02007456,91967.0,91966.0,0.2416974]
[1765184518155,0.00245456,91967.0,91966.0,0.2416974]
[1765184518464,0.00245456,91967.0,91966.0,0.3071994]
[1765184518991,0.00245456,91967.0,91966.0,0.32028987]
[1765184519211,0.00084169,91967.0,91966.0,0.2815294]
[1765184519760,0.00084169,91967.0,91966.0,0.2416974]
[1765184521332,0.00084169,91967.0,91966.0,0.3067894]
[1765184521490,0.00084169,91967.0,91966.0,0.2845974]
[1765184522364,0.00084169,91967.0,91966.0,0.2589274]
[1765184522564,0.00084169,91967.0,91966.0,0.2811194]
[1765184522759,0.00084169,91967.0,91966.0,0.2416974]
[1765184522965,0.00084169,91967.0,91966.0,0.2638894]
[1765184523186,0.00084169,91967.0,91966.0,0.2416974]
[1765184523386,0.00084169,91967.0,91966.0,0.2638894]
[1765184524340,0.00084169,91967.0,91966.0,0.3067894]
[1765184524669,0.00084169,91967.0,91966.0,0.6075974]
[1765184524880,0.0002,91980.0,91974.0,0.01087263]
[1765184525105,30.85675,92000.0,91994.0,0.022192]
[1765184525309,30.8568667,92000.0,91999.0,5.323]
[1765184525556,30.35855711,92000.0,91999.0,5.345192]
[1765184525799,30.35850263,92000.0,91999.0,5.34911852]
[1765184526020,30.33607457,92000.0,91999.0,5.39261976]
[1765184526249,24.77861032,92000.0,91999.0,5.49558405]
[1765184526646,24.77861032,92000.0,91999.0,5.48773101]
[1765184527011,24.25260377,92000.0,91999.0,5.46553901]
[1765184527221,23.77497764,92000.0,91999.0,5.45859187]
[1765184527423,23.77497764,92000.0,91999.0,5.52111486]
[1765184527651,23.77497764,92000.0,91999.0,5.43639987]
[1765184527825,23.77497764,92000.0,91999.0,5.49616312]
[1765184528060,23.77497764,92000.0,91999.0,5.57840341]
[1765184528280,23.77497764,92000.0,91999.0,5.43364013]
[1765184528490,23.77497764,92000.0,91999.0,5.36001958]
[1765184528491,23.26716901,92000.0,91999.0,5.36001958]
[1765184528635,23.23456857,92000.0,91999.0,5.37786886]
[1765184528841,23.23456857,92000.0,91999.0,5.42258257]
[1765184529045,22.70192929,92000.0,91999.0,5.45537385]
[1765184529364,22.39338912,92000.0,91999.0,5.42831229]
[1765184529505,22.36078868,92000.0,91999.0,5.47182955]
[1765184529709,22.36078868,92000.0,91999.0,5.41046301]
[1765184529954,22.36078868,92000.0,91999.0,5.33070002]
[1765184530158,22.36078868,92000.0,91999.0,5.34194002]
[1765184530357,22.36078868,92000.0,91999.0,3.86854002]
[1765184530532,22.36078868,92000.0,91999.0,3.9085813]
[1765184531091,22.36174597,92000.0,91999.0,5.3819813]
[1765184531697,21.86399146,92000.0,91999.0,5.3879813]
[1765184531987,21.52405453,92000.0,91999.0,0.44450429]
[1765184532204,21.25469641,92000.0,91999.0,5.49187571]
[1765184532413,21.03749048,92000.0,91999.0,5.41046301]
[1765184532545,21.03749048,92000.0,91999.0,5.44651098]
[1765184532546,20.76334851,92000.0,91999.0,5.44651098]
[1765184532752,20.48874327,92000.0,91999.0,5.47634096]
[1765184532992,20.48874327,92000.0,91999.0,5.44583443]
[1765184533194,20.48874327,92000.0,91999.0,5.41510991]
[1765184533397,19.98715121,92000.0,91999.0,5.40446301]
[1765184533598,19.98715121,92000.0,91999.0,5.43518753]
[1765184533835,19.98715121,92000.0,91999.0,2.90887101]
[1765184534007,19.98715121,92000.0,91999.0,4.75896301]
[1765184534214,19.98715121,92000.0,91999.0,0.40446301]
[1765184534368,19.98715121,92000.0,91999.0,5.44294283]
[1765184534784,19.98715121,92000.0,91999.0,5.45194283]
[1765184535186,19.98715121,92000.0,91999.0,5.41913668]
[1765184535400,19.98715121,92000.0,91999.0,5.43654414]
[1765184535626,19.98715121,92000.0,91999.0,5.41435214]
[1765184535846,19.98715121,92000.0,91999.0,2.81892915]
[1765184536177,19.98715121,92000.0,91999.0,1.48213021]
[1765184536349,20.00119408,92000.0,91999.0,0.37402115]
[1765184536566,20.02584408,92000.0,91999.0,0.08194871]
[1765184536728,20.02584408,92000.0,91999.0,0.142616]
[1765184537047,20.02584408,92000.0,91999.0,0.07294871]
[1765184537337,20.02584408,92000.0,91999.0,0.42414071]
[1765184537743,20.02584408,92000.0,91999.0,0.41814071]
[1765184538413,20.00119408,92000.0,91999.0,0.41814071]
[1765184538626,20.02584408,92000.0,91999.0,0.39594871]
[1765184538802,20.02584408,92000.0,91999.0,0.41814071]
[1765184539029,20.02584408,92000.0,91999.0,0.39594871]
[1765184539153,20.02584408,92000.0,91999.0,0.41814071]
[1765184540549,19.98715121,92000.0,91999.0,0.41814071]
[1765184540695,19.98715121,92000.0,91999.0,0.39594871]
[1765184541109,20.01180121,92000.0,91999.0,0.39594871]
[1765184541374,20.01180121,92000.0,91999.0,0.61334237]
[1765184541566,20.01180121,92000.0,91999.0,0.61829437]
[1765184541860,20.01180121,92000.0,91999.0,0.39794871]
[1765184542060,20.01180121,92000.0,91999.0,0.07990071]
[1765184542262,0.21739366,91999.0,91992.0,0.02886396]
[1765184542552,0.01087086,91989.0,91988.0,0.01724]
[1765184542694,0.01087121,91986.0,91983.0,0.323]
[1765184542895,0.01087157,91983.0,91982.0,0.01617]
[1765184543211,0.01617,91975.0,91974.0,0.01724]
[1765184543594,0.01617,91975.0,91968.0,0.01087334]
[1765184543595,0.04082,91975.0,91968.0,0.01087334]